bitfinex/quotes_BTCUSD_20260125
["timestamp","ask_amount","ask_price","bid_price","bid_amount"]
[1769366281465,0.01144623,87365.0,87331.0,0.12797367]
[1769366281466,0.10287097,87362.0,87331.0,0.12797367]
[1769366281666,0.11396268,87361.0,87336.0,0.46773743]
[1769366281838,0.11396268,87361.0,87328.0,0.01145108]
[1769366281839,0.43488666,87351.0,87332.0,0.12797367]
[1769366282159,0.11396143,87360.0,87332.0,0.12797367]
[1769366282160,0.00596027,87361.0,87338.0,0.01144976]
[1769366282303,1.05249512,87377.0,87313.0,0.01145304]
[1769366282304,0.2427,87342.0,87313.0,0.01145304]
[1769366282500,0.2427,87342.0,87315.0,0.12797367]
[1769366282501,0.00928848,87338.0,87315.0,0.12797367]
[1769366282846,0.00047382,87342.0,87315.0,0.12797367]
[1769366282847,0.00047382,87342.0,87327.0,0.46773743]
[1769366283071,0.00596027,87360.0,87315.0,0.12797367]
[1769366283072,0.00596027,87360.0,87343.0,1.0844817]
[1769366283548,0.00596027,87360.0,87344.0,0.13942265]
[1769366283748,0.00596027,87360.0,87345.0,1.63985664]
[1769366283951,0.00596027,87360.0,87345.0,0.56682379]
[1769366284222,0.00071152,87345.0,87331.0,0.01145068]
[1769366284418,0.00118534,87345.0,87338.0,0.12797367]
[1769366284648,0.00596027,87360.0,87343.0,1.0844817]
[1769366284856,0.00596027,87360.0,87346.0,0.01144872]
[1769366285045,0.00596027,87360.0,87344.0,0.01144898]
[1769366285174,0.00596027,87360.0,87335.0,0.43885143]
[1769366285422,0.01144872,87346.0,87318.0,1.21245537]
[1769366285636,0.44540638,87345.0,87319.0,0.00103316]
[1769366285884,0.43395753,87345.0,87319.0,0.00103316]
[1769366286312,0.43395753,87345.0,87318.0,1.08495552]
[1769366286313,1.00288274,87342.0,87318.0,0.00047382]
[1769366286525,1.00189274,87338.0,87318.0,0.00047382]
[1769366286752,0.95330821,87336.0,87318.0,0.00047382]
[1769366286971,0.43395753,87338.0,87318.0,1.08495552]
[1769366287144,0.2709484,87390.0,87318.0,1.08495552]
[1769366287145,0.43395753,87354.0,87321.0,0.01145199]
[1769366287450,0.43395753,87354.0,87318.0,0.00047382]
[1769366287451,1.14789516,87349.0,87323.0,0.12797367]
[1769366287628,0.44540651,87344.0,87318.0,0.00047382]
[1769366287848,0.43395753,87342.0,87324.0,0.12797367]
[1769366288245,0.43395753,87359.0,87326.0,0.01145134]
[1769366288447,1.14789516,87356.0,87325.0,1.09593317]
[1769366288645,0.12797367,87391.0,87325.0,1.09593317]
[1769366288646,0.43395753,87359.0,87327.0,0.01145121]
[1769366288847,0.43395753,87359.0,87333.0,1.0844817]
[1769366289186,0.43395753,87359.0,87338.0,0.12797367]
[1769366289387,0.43395753,87359.0,87335.0,0.01145016]
[1769366289610,0.43395753,87359.0,87338.0,0.12797367]
[1769366289829,0.01144636,87364.0,87338.0,1.21245537]
[1769366290023,0.43395753,87357.0,87331.0,0.01145068]
[1769366290233,0.43395753,87355.0,87332.0,0.01145055]
[1769366290591,0.43395753,87355.0,87333.0,0.01145042]
[1769366290799,0.00596027,87360.0,87336.0,1.2239054]
[1769366291002,0.43395753,87366.0,87344.0,1.09593068]
[1769366291202,0.00597065,87365.0,87344.0,1.0844817]
[1769366292010,0.00597065,87365.0,87346.0,0.01144872]
[1769366292212,0.43395753,87379.0,87352.0,0.12797367]
[1769366292412,0.020736,87394.0,87373.0,0.00596026]
[1769366292617,0.17588,87427.0,87373.0,0.00596026]
[1769366292618,0.43395753,87399.0,87373.0,0.00596026]
[1769366292818,0.00596027,87406.0,87384.0,0.12797367]
[1769366292819,0.43922818,87398.0,87384.0,0.12797367]
[1769366293018,1.10667133,87407.0,87384.0,0.12797367]
[1769366293226,0.00527065,87406.0,87384.0,0.12797367]
[1769366293434,0.00541286,87407.0,87385.0,1.0844817]
[1769366293612,0.00541286,87407.0,87382.0,0.011444]
[1769366293965,0.43395753,87403.0,87378.0,0.01144452]
[1769366294165,0.43395753,87403.0,87367.0,0.42740127]
[1769366294358,0.43395753,87390.0,87372.0,0.12797367]
[1769366294505,0.43395753,87390.0,87366.0,0.0114461]
[1769366294707,0.01144177,87399.0,87373.0,0.12797367]
[1769366295006,0.00527065,87398.0,87373.0,0.12797367]
[1769366295430,0.0114419,87398.0,87373.0,0.12797367]
[1769366295629,0.00527065,87397.0,87373.0,0.12797367]
[1769366295877,0.00527065,87398.0,87373.0,0.13941885]
[1769366296101,0.00527065,87398.0,87376.0,0.01144479]
[1769366296300,0.00527065,87399.0,87378.0,1.06791951]
[1769366296626,0.00527065,87398.0,87378.0,1.06791951]
[1769366296829,0.0167119,87403.0,87378.0,1.06791951]
[1769366296953,0.0167119,87403.0,87373.0,0.12797367]
[1769366296954,0.06247754,87403.0,87373.0,0.01144518]
[1769366297156,0.44199885,87403.0,87375.0,0.01144492]
[1769366297350,0.0623706,87403.0,87362.0,0.01144662]
[1769366297556,0.01144256,87393.0,87366.0,0.0114461]
[1769366297778,0.01144387,87383.0,87364.0,0.04124]
[1769366298496,1.05143754,87386.0,87364.0,0.04124]
[1769366298497,1.47672449,87386.0,87364.0,0.04124]
[1769366299298,1.06287905,87401.0,87372.0,0.12797367]
[1769366299498,0.00527065,87400.0,87372.0,0.12797367]
[1769366299648,0.01671229,87400.0,87372.0,0.13941898]
[1769366299865,0.42528695,87401.0,87378.0,0.01144452]
[1769366300071,0.01158294,87407.0,87378.0,0.01144452]
[1769366300236,0.00527065,87406.0,87386.0,0.12797367]
[1769366300438,0.00527065,87406.0,87381.0,0.01144413]
[1769366300639,0.00527065,87406.0,87386.0,0.12797367]
[1769366301366,0.42528695,87425.0,87407.0,0.00014221]
[1769366301545,0.42528695,87434.0,87408.0,0.00458714]
[1769366302166,0.01143785,87429.0,87408.0,0.00458714]
[1769366302409,0.01143798,87428.0,87408.0,0.00458714]
[1769366302747,0.01143863,87423.0,87408.0,0.00458714]
[1769366302947,0.01143837,87425.0,87401.0,0.12797367]
[1769366303542,0.22872968,87440.0,87401.0,0.12797367]
[1769366303543,1.05143754,87438.0,87401.0,0.12797367]
[1769366303782,0.42528695,87435.0,87401.0,1.19589318]
[1769366303985,0.42528695,87435.0,87404.0,1.07936063]
[1769366304361,0.01143732,87433.0,87405.0,0.01144099]
[1769366304518,0.01143772,87430.0,87403.0,0.01144125]
[1769366304709,0.01143785,87429.0,87402.0,0.01144138]
[1769366304905,0.0114385,87424.0,87396.0,1.06791951]
[1769366305198,0.01739943,87419.0,87396.0,0.00014221]
[1769366305406,0.44268638,87419.0,87396.0,0.00014221]
[1769366305531,0.43124722,87419.0,87402.0,0.12797367]
[1769366305952,0.00596027,87419.0,87402.0,0.12797367]
[1769366306238,0.42528695,87438.0,87416.0,0.12797367]
[1769366306443,0.01143706,87435.0,87416.0,0.12797367]
[1769366306668,0.01143706,87435.0,87409.0,0.44786006]
[1769366306669,0.01143706,87435.0,87417.0,0.12797367]
[1769366306867,0.01143693,87436.0,87409.0,0.44786006]
[1769366307071,1.05338783,87441.0,87418.0,0.12797367]
[1769366307277,0.01143667,87438.0,87418.0,0.12797367]
[1769366307610,0.01143654,87439.0,87419.0,0.12797367]
[1769366307739,0.00596027,87441.0,87419.0,0.12797367]
[1769366308561,0.00596027,87441.0,87421.0,0.44786006]
[1769366308797,0.01143523,87449.0,87422.0,0.44786006]
[1769366309025,0.01143575,87445.0,87423.0,1.06791951]
[1769366309240,0.01143562,87446.0,87422.0,0.44786006]
[1769366309657,0.00596027,87453.0,87422.0,0.45929882]
[1769366309658,0.01739498,87453.0,87422.0,0.45929882]
[1769366309859,0.01739498,87453.0,87422.0,0.44786006]
[1769366310074,0.00596027,87453.0,87422.0,0.44786006]
[1769366310300,0.00643459,87453.0,87422.0,0.44786006]
[1769366310511,0.00643459,87453.0,87433.0,0.12797367]
[1769366310722,0.01143497,87451.0,87433.0,0.12797367]
[1769366311137,0.01143523,87449.0,87433.0,0.12797367]
[1769366311565,0.00643459,87453.0,87433.0,0.12797367]
[1769366312004,0.00643459,87453.0,87436.0,1.06791951]
[1769366312222,0.42528695,87469.0,87433.0,0.13941099]
[1769366312223,0.42528695,87469.0,87438.0,0.44786006]
[1769366312441,0.0005542,87464.0,87439.0,1.06791951]
[1769366312892,0.06860679,87455.0,87427.0,0.44786006]
[1769366313123,0.01143445,87455.0,87437.0,0.12797367]
[1769366313352,0.01143458,87454.0,87427.0,1.58819569]
[1769366313566,0.01143458,87454.0,87437.0,0.12797367]
[1769366313988,0.43941841,87452.0,87423.0,0.01143863]
[1769366314235,0.43941841,87452.0,87420.0,1.12889752]
[1769366314236,0.43941841,87452.0,87435.0,0.12797367]
[1769366315236,0.45085325,87452.0,87435.0,0.12797367]
[1769366315447,0.01143497,87451.0,87421.0,0.43050528]
[1769366315646,0.01143536,87448.0,87434.0,0.12797367]
[1769366316094,0.06861078,87450.0,87434.0,0.12797367]
[1769366316095,0.01143523,87449.0,87434.0,0.12797367]
[1769366316259,0.01143523,87449.0,87427.0,1.12889752]
[1769366316584,0.01143523,87449.0,87433.0,0.12797367]
[1769366316832,0.020736,87460.0,87410.0,0.1758]
[1769366317022,0.12797367,87475.0,87411.0,0.1289448]
[1769366317023,5.05,87452.0,87411.0,0.1289448]
[1769366317182,5.05,87452.0,87380.0,0.37521257]
[1769366317183,0.0114402,87411.0,87408.0,0.06368346]
[1769366317367,0.01143942,87417.0,87408.0,0.06368346]
[1769366317574,0.01144033,87410.0,87403.0,0.12797367]
[1769366317781,0.01144073,87407.0,87403.0,0.12797367]
[1769366318016,0.01144033,87410.0,87403.0,0.12797367]
[1769366318219,0.01143968,87415.0,87403.0,0.12797367]
[1769366318419,0.72774686,87429.0,87403.0,0.12844799]
[1769366318626,1.16716527,87429.0,87403.0,0.12844799]
[1769366319078,6.10954774,87428.0,87403.0,0.00047432]
[1769366319252,1.05109293,87424.0,87403.0,0.00047432]
[1769366319455,0.43941841,87421.0,87403.0,0.00047432]
[1769366319774,1.05109293,87417.0,87403.0,0.00047432]
[1769366319956,1.49051134,87416.0,87403.0,0.00047432]
[1769366320161,1.05109293,87416.0,87403.0,0.00047432]
[1769366320357,0.0114419,87398.0,87387.0,0.17576]
[1769366320566,0.01144177,87399.0,87387.0,0.17576]
[1769366320761,0.0115839,87399.0,87376.0,1.12889752]
[1769366321116,0.00014213,87399.0,87376.0,1.12889752]
[1769366321355,0.00014213,87399.0,87376.0,1.57084759]
[1769366321556,0.00014213,87399.0,87384.0,1.12889752]
[1769366321751,0.00014213,87399.0,87389.0,0.12797367]
[1769366321951,0.00014213,87399.0,87390.0,0.12797367]
[1769366322111,0.00014213,87399.0,87378.0,0.000412]
[1769366322462,0.00014213,87399.0,87390.0,0.12797367]
[1769366322629,0.00014213,87399.0,87378.0,0.000412]
[1769366322804,0.01144295,87390.0,87386.0,0.12797367]
[1769366323027,0.01144269,87392.0,87386.0,0.12797367]
[1769366323230,0.01144243,87394.0,87386.0,0.12797367]
[1769366323718,0.01144217,87396.0,87386.0,0.12797367]
[1769366323921,0.0114419,87398.0,87378.0,0.000412]
[1769366324123,0.0114419,87398.0,87386.0,0.12797367]
[1769366324533,0.00014213,87399.0,87386.0,0.12797367]
[1769366324745,0.00014213,87399.0,87378.0,0.000412]
[1769366324985,0.00014213,87399.0,87387.0,0.12797367]
[1769366325768,0.00014213,87399.0,87378.0,0.01009822]
[1769366325980,0.00014213,87399.0,87386.0,0.12797367]
[1769366328718,0.00014213,87399.0,87386.0,1.25687119]
[1769366329707,0.00014213,87399.0,87387.0,1.12889752]
[1769366329960,0.00014213,87399.0,87388.0,0.0003286]
[1769366330792,0.00014213,87399.0,87396.0,0.08]
[1769366331446,0.00014213,87399.0,87388.0,0.0003286]
[1769366331662,0.43941841,87430.0,87397.0,0.06865169]
[1769366331869,0.43956062,87430.0,87410.0,0.37521257]
[1769366332068,0.43956062,87430.0,87418.0,0.12797367]
[1769366332069,0.00014221,87430.0,87418.0,0.12797367]
[1769366332241,1.05068035,87436.0,87418.0,0.12797367]
[1769366332446,1.05068035,87436.0,87407.0,1.5594028]
[1769366332447,0.00047394,87436.0,87419.0,1.25687119]
[1769366332868,0.00047394,87436.0,87433.0,0.12797367]
[1769366333096,0.00047394,87436.0,87422.0,0.43050528]
[1769366333487,0.01143536,87448.0,87422.0,0.43050528]
[1769366333488,0.0114351,87450.0,87433.0,0.12797367]
[1769366333808,0.43941841,87462.0,87433.0,0.12797367]
[1769366333966,0.43956051,87462.0,87433.0,0.12797367]
[1769366334181,0.43956051,87462.0,87429.0,0.43050528]
[1769366334182,0.43941841,87460.0,87429.0,0.43050528]
[1769366334374,0.0001421,87462.0,87422.0,1.30469752]
[1769366334375,0.43941841,87456.0,87433.0,0.12797367]
[1769366334586,1.05114955,87453.0,87433.0,0.12797367]
[1769366334777,0.43941841,87450.0,87423.0,0.12797367]
[1769366334972,0.0001421,87462.0,87411.0,1.12889752]
[1769366334973,0.43941841,87446.0,87411.0,1.12889752]
[1769366335174,1.05114955,87443.0,87418.0,0.12797367]
[1769366335384,0.43941841,87440.0,87409.0,0.17576]
[1769366335595,0.43941841,87436.0,87418.0,0.12797367]
[1769366335838,0.13588725,87459.0,87417.0,0.08]
[1769366335839,0.43941841,87434.0,87417.0,0.08]
[1769366336000,0.43941841,87434.0,87418.0,0.12797367]
[1769366336404,0.43941841,87434.0,87417.0,0.08]
[1769366336609,1.49056796,87433.0,87418.0,0.12797367]
[1769366336830,0.01143889,87421.0,87418.0,0.12797367]
[1769366337033,0.01143889,87421.0,87418.0,0.12844761]
[1769366337261,0.01143889,87421.0,87418.0,0.00047394]
[1769366337474,0.01143902,87420.0,87417.0,0.08]
[1769366337673,0.05719644,87419.0,87417.0,0.08014221]
[1769366337876,0.01,87417.0,87402.0,0.12797367]
[1769366338094,0.01,87417.0,87403.0,0.00085769]
[1769366338520,0.43941841,87452.0,87403.0,0.00085769]
[1769366338725,0.43941841,87452.0,87394.0,0.12797367]
[1769366338726,0.020736,87448.0,87408.0,0.12797367]
[1769366338908,1.8577,87449.0,87397.0,0.1288313]
[1769366338909,0.020736,87449.0,87397.0,0.1288313]
[1769366339096,0.00047403,87452.0,87397.0,1.25772882]
[1769366339097,0.17674418,87443.0,87397.0,1.25772882]
[1769366339320,0.43941841,87440.0,87397.0,1.25687119]
[1769366339582,0.17674418,87437.0,87397.0,1.25687119]
[1769366339715,0.43941841,87434.0,87397.0,1.25687119]
[1769366339927,0.01144086,87406.0,87397.0,1.25687119]
[1769366340183,0.01144112,87404.0,87397.0,1.25687119]
[1769366340316,0.01144138,87402.0,87397.0,0.55847895]
[1769366340536,0.0114402,87411.0,87398.0,1.12889752]
[1769366340740,0.01144046,87409.0,87398.0,1.12889752]
[1769366340940,0.01144099,87405.0,87398.0,1.12889752]
[1769366341342,1.07178134,87501.0,87393.0,0.17576]
[1769366341343,5.05,87436.0,87393.0,0.17576]
[1769366341606,0.46015441,87430.0,87393.0,0.17576]
[1769366341844,0.17674418,87425.0,87389.0,0.0412]
[1769366342050,0.01144374,87384.0,87376.0,0.17576]
[1769366342252,0.01144334,87387.0,87376.0,0.17576]
[1769366342503,0.01144374,87384.0,87376.0,0.17576]
[1769366342674,0.01144348,87386.0,87376.0,0.17576]
[1769366343087,0.01144295,87390.0,87378.0,1.08186154]
[1769366343284,0.01144295,87390.0,87387.0,0.12797367]
[1769366343481,0.65014972,87403.0,87378.0,0.00055413]
[1769366344353,0.21073131,87403.0,87378.0,0.00055413]
[1769366344503,0.21073131,87399.0,87369.0,0.0412]
[1769366344708,0.20161237,87395.0,87369.0,0.0412]
[1769366344871,0.00014208,87399.0,87369.0,0.0412]
[1769366344872,0.4216688,87392.0,87369.0,0.0412]
[1769366345077,0.20161237,87389.0,87358.0,0.12911878]
[1769366345276,0.20161237,87385.0,87358.0,0.12911878]
[1769366345492,0.00014208,87399.0,87358.0,0.12911878]
[1769366345493,0.4216688,87383.0,87358.0,0.12911878]
[1769366345695,0.19844924,87382.0,87358.0,0.12911878]
[1769366345933,0.20161237,87379.0,87358.0,0.12911878]
[1769366346138,0.20161237,87378.0,87358.0,0.12911878]
[1769366346798,0.3867795,87379.0,87358.0,0.12911878]
[1769366347016,0.04134208,87399.0,87353.0,0.000412]
[1769366347017,0.4216688,87377.0,87353.0,0.000412]
[1769366347219,0.4216688,87373.0,87353.0,0.000412]
[1769366347421,0.00201612,87370.0,87353.0,0.000412]
[1769366347630,0.01144872,87346.0,87343.0,0.30373367]
[1769366347829,0.06869093,87348.0,87343.0,0.30373367]
[1769366348078,0.01144845,87348.0,87343.0,0.30373367]
[1769366348321,0.01144859,87347.0,87343.0,0.30373367]
[1769366348660,0.01144859,87347.0,87343.0,0.12797367]
[1769366348876,0.01144859,87347.0,87337.0,0.12797367]
[1769366349235,0.00201612,87367.0,87337.0,0.12797367]
[1769366349436,0.4216688,87365.0,87337.0,0.12797367]
[1769366349635,0.00201612,87364.0,87337.0,0.12797367]
[1769366349820,0.00201612,87363.0,87337.0,0.12797367]
[1769366350022,0.42368492,87363.0,87337.0,0.12797367]
[1769366350697,0.4216688,87363.0,87337.0,0.12797367]
[1769366350882,0.01144924,87342.0,87337.0,0.12885686]
[1769366351032,0.01144898,87344.0,87337.0,0.12885686]
[1769366351033,0.01144898,87344.0,87340.0,0.00088315]
[1769366351436,0.01144911,87343.0,87337.0,0.12797367]
[1769366351613,0.01144872,87346.0,87337.0,0.12797367]
[1769366351815,0.01144898,87344.0,87340.0,0.43613243]
[1769366352227,0.01144898,87344.0,87340.0,1.51758197]
[1769366352432,0.01144832,87349.0,87340.0,1.51758197]
[1769366353546,0.09108614,87396.0,87340.0,1.51758197]
[1769366353752,0.4216688,87363.0,87340.0,0.43613243]
[1769366353951,0.00201612,87375.0,87351.0,1.20942321]
[1769366354139,0.01144727,87357.0,87351.0,0.12797367]
[1769366354368,0.00201612,87375.0,87352.0,0.43613243]
[1769366355397,0.09108614,87410.0,87351.0,0.12797367]
[1769366355570,0.11548436,87386.0,87353.0,0.44144055]
[1769366355775,0.11548436,87385.0,87356.0,1.1154735]
[1769366355978,0.41838317,87382.0,87354.0,0.44144055]
[1769366356187,0.0412,87399.0,87354.0,0.44144055]
[1769366356188,0.11548436,87379.0,87354.0,0.44144055]
[1769366356392,0.41838317,87376.0,87353.0,0.00014205]
[1769366356610,0.11548436,87373.0,87353.0,0.00014205]
[1769366356792,0.11548436,87372.0,87353.0,0.00014205]
[1769366357004,0.11548436,87372.0,87353.0,0.00114205]
[1769366357638,0.11548436,87381.0,87353.0,0.00114205]
[1769366357794,0.11548436,87381.0,87353.0,1.5580561]
[1769366357991,0.11548436,87381.0,87353.0,0.00014205]
[1769366358196,0.41838317,87382.0,87356.0,0.44144055]
[1769366358399,0.41838317,87382.0,87358.0,0.44144055]
[1769366358946,0.41838317,87382.0,87359.0,0.44144055]
[1769366360299,0.11548436,87384.0,87361.0,0.44144055]
[1769366360508,0.11548436,87396.0,87367.0,0.44144055]
[1769366360709,0.11548436,87396.0,87370.0,1.1154735]
[1769366360920,0.11548436,87396.0,87370.0,1.56835962]
[1769366361119,0.11548436,87396.0,87375.0,0.01144492]
[1769366361353,0.97815787,87403.0,87377.0,0.4528852]
[1769366361693,0.97815787,87403.0,87380.0,1.24344717]
[1769366361875,0.97815787,87403.0,87384.0,0.01144374]
[1769366362120,0.97815787,87403.0,87383.0,0.01144387]
[1769366362274,0.97815787,87403.0,87382.0,0.011444]
[1769366362479,0.97815787,87403.0,87381.0,0.44144055]
[1769366362678,0.1459857,87402.0,87381.0,0.44144055]
[1769366362852,0.14612794,87402.0,87388.0,0.01144321]
[1769366363051,0.14612794,87402.0,87391.0,1e-08]
[1769366364075,0.1459857,87401.0,87391.0,1e-08]
[1769366365984,0.1459857,87400.0,87391.0,1e-08]
[1769366366189,0.1459857,87398.0,87391.0,1e-08]
[1769366366389,0.1459857,87396.0,87391.0,1e-08]
[1769366366589,0.41838317,87393.0,87391.0,1e-08]
[1769366366941,0.1459857,87392.0,87391.0,1e-08]
[1769366367172,0.56436887,87401.0,87391.0,1e-08]
[1769366367322,0.41838317,87400.0,87391.0,1e-08]
[1769366367665,0.1459857,87399.0,87391.0,1e-08]
[1769366367865,0.00014224,87402.0,87391.0,1e-08]
[1769366367866,0.1459857,87396.0,87391.0,1e-08]
[1769366367988,0.1459857,87394.0,87391.0,1e-08]
[1769366368187,0.56436887,87392.0,87391.0,1e-08]
[1769366370105,0.41838317,87401.0,87391.0,1e-08]
[1769366370321,0.25990088,87400.0,87391.0,1e-08]
[1769366370522,0.11391518,87399.0,87391.0,1e-08]
[1769366370768,0.11391518,87398.0,87391.0,1e-08]
[1769366370977,0.11391518,87397.0,87391.0,1e-08]
[1769366371189,0.11391518,87396.0,87391.0,1e-08]
[1769366371389,0.1459857,87400.0,87391.0,1e-08]
[1769366371390,0.11391518,87395.0,87391.0,1e-08]
[1769366371599,0.00014224,87402.0,87391.0,1e-08]
[1769366371774,0.11395661,87401.0,87391.0,1e-08]
[1769366371969,0.11395661,87400.0,87391.0,1e-08]
[1769366372181,0.11395661,87399.0,87391.0,1e-08]
[1769366372338,0.00014224,87402.0,87391.0,1e-08]
[1769366372537,0.11397226,87401.0,87391.0,1e-08]
[1769366372742,0.11397226,87400.0,87391.0,1e-08]
[1769366372980,0.11397226,87399.0,87391.0,1e-08]
[1769366373180,0.11397226,87398.0,87391.0,1e-08]
[1769366373430,0.00014224,87402.0,87391.0,1e-08]
[1769366373571,0.11397997,87401.0,87391.0,1e-08]
[1769366373785,0.11397997,87400.0,87391.0,1e-08]
[1769366374123,0.11397997,87399.0,87391.0,1e-08]
[1769366374273,0.11397997,87398.0,87391.0,1e-08]
[1769366374474,0.00014224,87402.0,87391.0,1e-08]
[1769366374709,0.11398603,87401.0,87391.0,1e-08]
[1769366375049,0.11398603,87400.0,87391.0,1e-08]
[1769366375266,0.11398603,87399.0,87391.0,1e-08]
[1769366375386,0.00014224,87402.0,87391.0,1e-08]
[1769366375587,0.11397535,87401.0,87391.0,1e-08]
[1769366375796,0.00014224,87402.0,87391.0,1e-08]
[1769366375797,0.11397535,87400.0,87391.0,1e-08]
[1769366375996,0.11397535,87399.0,87391.0,1e-08]
[1769366376245,0.00014224,87402.0,87391.0,1e-08]
[1769366376472,0.11396571,87401.0,87391.0,1e-08]
[1769366376672,0.11396571,87400.0,87391.0,1e-08]
[1769366376877,0.00014224,87402.0,87392.0,0.42054566]
[1769366377123,0.00014224,87402.0,87394.0,1.55629389]
[1769366377516,0.00014224,87402.0,87391.0,1e-08]
[1769366377517,0.1459857,87401.0,87391.0,1e-08]
[1769366377856,0.38461304,87402.0,87391.0,1e-08]
[1769366378060,0.3860729,87402.0,87391.0,1e-08]
[1769366378656,0.38461304,87402.0,87391.0,1e-08]
[1769366378862,0.00145986,87409.0,87391.0,1e-08]
[1769366379082,0.42934642,87407.0,87391.0,0.00014225]
[1769366379244,0.00145986,87415.0,87393.0,0.43198822]
[1769366379444,0.11541382,87414.0,87393.0,0.42054566]
[1769366379668,0.42934642,87423.0,87403.0,1.13574823]
[1769366379872,0.42934642,87423.0,87403.0,0.42054566]
[1769366380080,0.22646973,87423.0,87403.0,0.42054566]
[1769366380463,0.11394532,87422.0,87410.0,1.13574823]
[1769366380673,0.43775162,87441.0,87415.0,0.01143968]
[1769366380890,0.43775162,87441.0,87403.0,0.12797367]
[1769366380891,0.11392874,87440.0,87425.0,0.01143837]
[1769366381057,0.0004302,87443.0,87425.0,1.13574823]
[1769366381260,0.0004302,87443.0,87426.0,1.13574823]
[1769366381465,0.0004302,87443.0,87427.0,0.42054566]
[1769366382033,0.00090443,87443.0,87427.0,0.42054566]
[1769366382630,0.42934642,87441.0,87408.0,1.13574823]
[1769366382835,0.06952065,87443.0,87412.0,0.01144007]
[1769366383086,0.0084052,87437.0,87411.0,0.42054566]
[1769366383287,0.01143719,87434.0,87411.0,0.42054566]
[1769366383632,0.0084052,87433.0,87411.0,0.42054566]
[1769366383847,0.42934642,87434.0,87412.0,1.13574823]
[1769366384054,0.42934642,87434.0,87412.0,1.56773396]
[1769366384271,0.42934642,87434.0,87413.0,0.42054566]
[1769366384466,0.0084052,87439.0,87415.0,0.05719782]
[1769366384699,0.0084052,87439.0,87415.0,0.43198534]
[1769366385034,0.0084052,87439.0,87415.0,0.42054566]
[1769366385239,0.42934642,87439.0,87415.0,0.42054566]
[1769366385427,0.0084052,87438.0,87415.0,0.42054566]
[1769366386061,0.01143693,87436.0,87415.0,0.42054566]
[1769366386262,0.0084052,87435.0,87415.0,0.42054566]
[1769366387914,0.42934642,87432.0,87406.0,0.42054566]
[1769366388129,0.01143732,87433.0,87406.0,0.42054566]
[1769366388130,0.43775162,87431.0,87406.0,0.42054566]
[1769366388489,0.0084052,87430.0,87406.0,0.42054566]
[1769366388696,0.01143902,87420.0,87391.0,0.01144283]
[1769366388934,0.00834895,87414.0,87391.0,0.42054567]
[1769366389325,0.00834895,87414.0,87393.0,1.13574823]
[1769366389483,0.00834895,87414.0,87394.0,0.42054566]
[1769366390659,0.01143798,87428.0,87400.0,0.01144164]
[1769366390828,0.11385828,87427.0,87402.0,1.13574823]
[1769366391042,0.11385828,87426.0,87403.0,0.42054566]
[1769366391277,0.11385828,87425.0,87404.0,1.13574823]
[1769366391446,0.11385828,87424.0,87407.0,0.42054566]
[1769366391598,0.11385828,87423.0,87407.0,0.42054566]
[1769366391800,0.113877,87422.0,87400.0,0.4206879]
[1769366392020,0.01653176,87422.0,87400.0,0.4206879]
[1769366392287,0.09108614,87434.0,87400.0,0.00014224]
[1769366392288,0.8348952,87420.0,87400.0,0.00014224]
[1769366392502,5.79e-05,87400.0,87391.0,1e-08]
[1769366392709,0.00020003,87400.0,87391.0,1e-08]
[1769366393466,0.01143955,87416.0,87391.0,1e-08]
[1769366393688,0.12533428,87415.0,87392.0,0.42054566]
[1769366394045,0.07712725,87416.0,87392.0,0.42054566]
[1769366394046,0.1138946,87414.0,87393.0,0.42054566]
[1769366394248,0.00848966,87416.0,87394.0,0.42054566]
[1769366394533,0.11390189,87415.0,87396.0,0.42054566]
[1769366394831,0.12239155,87414.0,87396.0,0.42054566]
[1769366395002,0.00848966,87414.0,87396.0,0.42054566]
[1769366395213,0.42934642,87416.0,87391.0,0.00014214]
[1769366395414,0.42934642,87409.0,87391.0,0.00014214]
[1769366395593,0.00848966,87408.0,87391.0,0.00014214]
[1769366395785,0.01993039,87407.0,87391.0,0.00014214]
[1769366395980,0.00848966,87406.0,87391.0,0.00014214]
[1769366396405,0.01993052,87406.0,87391.0,0.00014214]
[1769366396631,0.01144099,87405.0,87391.0,0.00014214]
[1769366396833,0.00848966,87406.0,87391.0,0.00014214]
[1769366397054,0.01993052,87406.0,87391.0,0.00014214]
[1769366397465,0.0114406,87408.0,87391.0,0.00014214]
[1769366397697,0.01993026,87408.0,87388.0,1.58519792]
[1769366397925,0.01144073,87407.0,87388.0,1.57873212]
[1769366398441,0.00863182,87408.0,87374.0,0.09932505]
[1769366398442,0.00848966,87402.0,87379.0,0.42054566]
[1769366398903,0.00848966,87402.0,87380.0,1.13574823]
[1769366399098,0.00848966,87402.0,87382.0,0.42054566]
[1769366399551,0.00014216,87408.0,87375.0,1.13574823]
[1769366399759,0.00014216,87408.0,87374.0,0.08788]
[1769366399760,0.00848966,87406.0,87379.0,1.13574823]
[1769366399994,0.00848966,87406.0,87382.0,0.42054566]
[1769366400208,0.00848966,87406.0,87384.0,0.42054566]
[1769366400416,0.00014216,87408.0,87377.0,0.42054566]
[1769366400417,0.0114423,87395.0,87377.0,0.42054566]
[1769366400627,0.0114423,87395.0,87377.0,1.13574823]
[1769366400838,0.01144204,87397.0,87378.0,1.13574823]
[1769366401050,0.01144204,87397.0,87381.0,0.42054566]
[1769366401286,0.05720758,87401.0,87383.0,0.42054566]
[1769366401493,0.01144204,87397.0,87385.0,0.42054566]
[1769366401714,0.01144151,87401.0,87385.0,0.42054566]
[1769366401945,0.01144151,87401.0,87387.0,0.42054566]
[1769366402158,0.01144151,87401.0,87388.0,1.13574823]
[1769366402371,0.01144086,87406.0,87380.0,0.12797367]
[1769366402372,0.01144204,87397.0,87390.0,0.42054566]
[1769366402612,0.0114423,87395.0,87390.0,0.42054566]
[1769366402874,0.011444,87382.0,87374.0,0.08788]
[1769366403081,0.011444,87382.0,87375.0,0.42054566]
[1769366403082,0.01144426,87380.0,87375.0,0.42054566]
[1769366403317,0.01144374,87384.0,87353.0,0.0004302]
[1769366403318,0.01144596,87367.0,87353.0,0.0004302]
[1769366403548,0.42156998,87376.0,87355.0,0.12797367]
[1769366403774,0.0421823,87373.0,87355.0,0.12797367]
[1769366403975,0.42156998,87372.0,87353.0,0.0004302]
[1769366404289,0.42166752,87372.0,87353.0,0.0004302]
[1769366404541,0.05723836,87354.0,87353.0,1.08069179]
[1769366404752,0.05709612,87354.0,87353.0,1.08069179]
[1769366404946,0.05709612,87354.0,87353.0,0.0329403]
[1769366405167,0.01144819,87350.0,87337.0,1.20823526]
[1769366405369,0.01144872,87346.0,87337.0,0.12797367]
[1769366405573,0.0114495,87340.0,87337.0,0.12797367]
[1769366405823,0.0114495,87340.0,87332.0,1.25606159]
[1769366406024,0.42156998,87354.0,87332.0,1.25606159]
[1769366406231,0.06335117,87403.0,87332.0,1.25606159]
[1769366406232,1.07613198,87364.0,87334.0,1.08026159]
[1769366406441,0.12797367,87400.0,87334.0,1.08026159]
[1769366406442,1.07613198,87360.0,87334.0,1.08026159]
[1769366406762,0.42156998,87357.0,87334.0,1.08026159]
[1769366406920,0.42156998,87356.0,87334.0,1.08026159]